bitfinex-derivatives/quotes_ETHF0:USTF0_20251223
["timestamp","ask_amount","ask_price","bid_price","bid_amount"]
[1766470519329,3.369,2971.0,2969.5,3.59550675]
[1766470519528,3.369,2971.0,2970.0,0.00505255]
[1766470519722,33.691,2972.1,2970.0,0.00505255]
[1766470519723,0.16835,2972.1,2970.1,9.684]
[1766470519922,0.16835,2972.1,2970.5,3.59550675]
[1766470519923,3.369,2972.0,2970.5,3.59550675]
[1766470520130,3.472,2972.0,2970.6,9.684]
[1766470520323,3.47536635,2972.0,2970.7,9.684]
[1766470521226,0.1683,2972.9,2971.0,3.59550675]
[1766470521519,3.369,2972.8,2971.7,0.00505255]
[1766470521719,3.369,2972.8,2971.4,3.368]
[1766470521720,3.53731,2972.8,2971.4,3.368]
[1766470522025,0.16833,2972.4,2971.0,3.368]
[1766470522226,9.207,2972.3,2971.0,3.368]
[1766470522426,9.21092065,2972.3,2971.0,3.368]
[1766470522628,0.00505255,2971.9,2971.4,0.00505255]
[1766470522923,3.37305255,2971.9,2971.4,0.00505255]
[1766470523326,3.37305255,2971.9,2970.6,0.00255376]
[1766470524430,3.37305255,2971.9,2971.0,0.00505255]
[1766470525521,0.00505255,2971.9,2971.0,0.00505255]
[1766470525725,3.368,2971.8,2971.0,3.37305255]
[1766470526317,3.59550675,2971.4,2967.5,3.01223418]
[1766470526519,3.76392675,2970.8,2967.9,3.76408675]
[1766470526722,9.206,2970.7,2968.3,3.87078979]
[1766470526924,9.206,2970.7,2968.4,13.27550675]
[1766470527127,9.37443,2970.7,2968.4,13.27550675]
[1766470527327,0.00505255,2969.8,2969.3,0.00505255]
[1766470527528,3.37584798,2969.8,2969.0,3.368]
[1766470528624,3.37584798,2969.8,2969.1,0.00505255]
[1766470533035,4.798e-05,2969.8,2969.1,0.00505255]
[1766470535131,0.00505255,2969.7,2969.1,0.00505255]
[1766470536833,4.798e-05,2969.8,2969.1,0.00505255]
[1766470541539,4.798e-05,2969.8,2969.1,3.37305255]
[1766470541540,3.36804798,2969.8,2969.1,3.37305255]
[1766470542349,3.36804798,2969.8,2969.1,0.00505255]
[1766470542639,3.36804798,2969.8,2968.9,3.368]
[1766470542839,3.36804798,2969.8,2968.6,9.677]
[1766470543645,0.00505255,2969.5,2968.9,0.00505255]
[1766470543843,3.369,2969.4,2968.9,0.00505255]
[1766470544340,3.369,2969.4,2968.6,9.677]
[1766470545345,3.369,2969.4,2968.7,0.00505255]
[1766470549452,3.369,2969.4,2968.6,9.677]
[1766470549747,3.369,2969.4,2968.4,3.37314052]
[1766470550548,3.369,2969.4,2968.6,0.00505255]
[1766470551444,3.369,2969.4,2968.4,0.00414052]
[1766470552745,3.369,2969.4,2968.3,3.369]
[1766470553140,3.369,2969.4,2967.7,5.203]
[1766470553340,3.369,2969.4,2968.0,3.369]
[1766470553547,3.369,2969.4,2968.4,0.00505255]
[1766470553741,3.369,2969.4,2968.4,0.00908445]
[1766470553940,3.5375,2969.4,2968.4,0.00908445]
[1766470555543,3.369,2969.3,2968.4,0.00908445]
[1766470572973,0.00505255,2969.5,2968.4,0.00908445]
[1766470572974,0.00505255,2969.5,2968.5,6.303]
[1766470573172,3.37505255,2969.5,2968.6,3.37]
[1766470576171,0.00505255,2969.5,2968.6,3.37]
[1766470576380,4.798e-05,2969.8,2968.6,3.37]
[1766470577480,4.798e-05,2969.8,2968.7,9.672]
[1766470577481,0.00505255,2969.5,2968.7,9.672]
[1766470577682,3.37505255,2969.5,2968.7,9.672]
[1766470580173,0.00505255,2969.5,2968.7,9.672]
[1766470582590,3.52004798,2969.8,2968.7,9.672]
[1766470582888,4.798e-05,2969.8,2968.7,9.672]
[1766470583482,0.00505255,2969.5,2968.7,9.672]
[1766470584183,0.00505255,2969.5,2968.4,0.00908445]
[1766470584389,0.00505255,2969.5,2968.5,18.093]
[1766470584688,4.798e-05,2969.8,2968.5,18.093]
[1766470585691,0.00505255,2969.4,2968.5,18.093]
[1766470586792,4.798e-05,2969.8,2968.5,18.093]
[1766470587490,4.798e-05,2969.8,2968.6,3.69222818]
[1766470587688,3.369,2970.1,2968.6,3.69222818]
[1766470588786,3.37313561,2970.1,2968.6,3.69222818]
[1766470589085,0.00413561,2970.1,2968.6,3.69222818]
[1766470589691,3.561e-05,2970.1,2968.6,3.69222818]
[1766470590084,3.561e-05,2970.1,2968.7,40.8]
[1766470590283,3.561e-05,2970.1,2968.8,3.369]
[1766470590490,3.561e-05,2970.1,2968.9,6.298]
[1766470590896,3.561e-05,2970.1,2969.0,3.89323479]
[1766470591098,3.561e-05,2970.1,2969.1,3.369]
[1766470591489,3.369,2970.9,2969.2,3.89323479]
[1766470591789,3.22492272,2970.9,2969.3,14.721]
[1766470591990,3.22492272,2970.9,2969.4,3.369]
[1766470592587,3.2286078,2970.9,2969.4,3.369]
[1766470594595,3.2286078,2970.9,2968.8,0.16853]
[1766470594795,3.2286078,2970.9,2968.9,18.094]
[1766470597902,3.2286078,2970.9,2969.0,3.65755318]
[1766470598587,3.2286078,2970.9,2968.9,18.094]
[1766470598798,3.2286078,2970.9,2968.7,40.8]
[1766470598998,0.16843,2970.7,2968.8,9.689]
[1766470599203,13.709,2970.6,2968.8,9.689]
[1766470599396,13.87743,2970.6,2968.8,9.689]
[1766470599894,0.16844,2970.5,2968.8,9.689]
[1766470601800,0.16845,2970.3,2968.4,0.00908445]
[1766470601998,3.53645,2970.2,2968.5,3.373]
[1766470602196,3.368,2970.1,2968.5,3.373]
[1766470602398,4.423,2970.0,2968.5,3.373]
[1766470604208,4.423,2970.0,2968.4,0.00908445]
[1766470604403,4.423,2970.0,2968.5,3.369]
[1766470604802,0.16849,2969.6,2968.4,0.00908445]
[1766470605002,3.369,2969.5,2968.4,0.00908445]
[1766470605304,5.839,2969.4,2968.4,0.00908445]
[1766470605709,0.16851,2969.2,2967.5,5.242]
[1766470606006,3.369,2969.1,2967.6,8.353]
[1766470606703,0.00505255,2968.6,2968.1,0.00505255]
[1766470606908,3.37688546,2968.6,2968.1,0.00505255]
[1766470607108,3.37688546,2968.6,2967.6,8.35557272]
[1766470607913,0.16839,2971.3,2968.5,4.07690821]
[1766470608108,0.1684,2971.1,2968.6,18.114]
[1766470608309,3.369,2971.0,2968.7,40.8]
[1766470608608,5.424,2970.9,2968.8,3.57684173]
[1766470608815,5.42711701,2970.9,2968.9,3.369]
[1766470609114,0.00505255,2970.1,2969.6,0.00505255]
[1766470609305,0.00505255,2970.1,2969.6,3.37405255]
[1766470610604,3.369,2970.4,2969.6,3.37405255]
[1766470611010,3.369,2970.4,2969.6,0.00505255]
[1766470611412,11.792,2970.4,2968.9,3.369]
[1766470611606,11.792,2970.4,2967.6,4.07948093]
[1766470611814,4.07690821,2970.1,2967.6,0.00257272]
[1766470612123,8.753,2970.0,2967.6,0.00257272]
[1766470612413,0.00505255,2969.1,2967.6,0.00257272]
[1766470612603,16.395,2969.0,2967.6,0.00257272]
[1766470613412,0.16853,2968.9,2967.6,0.00257272]
[1766470614517,0.16853,2968.9,2968.0,0.00505255]
[1766470615010,9.209,2968.8,2968.0,0.00505255]
[1766470615217,9.209,2968.8,2967.6,0.00257272]
[1766470615218,9.21328213,2968.8,2967.6,0.00257272]
[1766470615604,0.00428213,2968.8,2967.6,3.37157272]
[1766470615805,3.369,2968.7,2967.6,3.37157272]
[1766470616210,3.369,2968.7,2967.9,0.00505255]
[1766470616419,3.369,2968.7,2967.6,0.00257272]
[1766470616915,0.00928213,2968.8,2967.6,0.00257272]
[1766470616916,0.00428213,2968.8,2967.6,0.00257272]
[1766470617117,8.509,2968.7,2967.6,0.00257272]
[1766470618115,8.509,2968.7,2966.8,3.37]
[1766470618510,8.67754,2968.7,2967.5,0.00336834]
[1766470618816,0.16855,2968.4,2966.8,3.37]
[1766470619011,3.53856,2968.3,2965.7,0.16871]
[1766470619319,0.16859,2967.8,2965.7,3.37359033]
[1766470619619,0.00505255,2967.0,2965.8,40.8]
[1766470619818,3.37,2966.9,2965.8,40.8]
[1766470620119,3.37,2966.9,2965.7,3.37359033]
[1766470620908,0.00505255,2967.0,2965.7,3.37359033]
[1766470621109,3.37505255,2967.0,2965.7,3.37359033]
[1766470622326,3.37,2967.4,2965.8,7.6619225]
[1766470622614,0.16855,2968.6,2965.8,7.6619225]
[1766470622813,4.82155,2968.5,2965.8,7.6619225]
[1766470623419,0.00505255,2967.4,2966.9,0.00505255]
[1766470623824,0.16855,2968.5,2966.9,0.00505255]
[1766470624123,3.474,2968.4,2966.9,3.37505255]
[1766470625027,0.00505255,2967.9,2966.9,3.37505255]
[1766470625226,9.214,2967.8,2966.9,3.37505255]
[1766470625528,9.214,2967.8,2966.9,0.00505255]
[1766470626310,9.214,2967.7,2966.9,0.00505255]
[1766470626915,5.843,2967.7,2966.9,0.00505255]
[1766470627124,3.371,2967.6,2966.9,0.00505255]
[1766470627322,0.00505255,2967.9,2966.9,0.00505255]
[1766470627525,5.843,2967.7,2966.9,0.00505255]
[1766470627726,3.371,2967.6,2966.9,0.00505255]
[1766470628429,3.371,2967.5,2966.9,0.00505255]
[1766470628831,3.371,2967.7,2966.9,0.00505255]
[1766470629520,0.00505255,2967.9,2966.9,0.00505255]
[1766470629715,3.37605255,2967.9,2966.9,0.00505255]
[1766470630526,0.00505255,2967.9,2966.9,6.33105255]
[1766470630723,0.00505255,2967.9,2967.0,8.428]
[1766470630924,0.00505255,2967.9,2967.1,3.371]
[1766470631321,3.37605255,2967.9,2967.1,3.371]
[1766470632227,3.37605255,2967.9,2966.9,0.00505255]
[1766470632617,4.32505255,2967.9,2966.9,0.00505255]
[1766470632829,3.371,2967.8,2966.9,0.00505255]
[1766470634129,3.371,2967.8,2966.0,3.371]
[1766470634321,3.53959,2967.8,2966.0,3.371]
[1766470634928,3.53959,2967.8,2966.6,0.00505255]
[1766470636320,3.53959,2967.8,2966.0,3.371]
[1766470637534,0.16859,2967.8,2966.0,3.371]
[1766470637733,16.545,2967.7,2966.0,3.371]
[1766470638634,0.16861,2967.5,2966.0,3.371]
[1766470638823,3.371,2967.4,2966.0,3.371]
[1766470639424,2.92672292,2967.0,2965.7,0.00359033]
[1766470639621,9.215,2966.9,2965.7,0.00359033]
[1766470639833,17.644,2966.9,2965.7,0.00359033]
[1766470640433,0.16864,2967.0,2965.7,0.00359033]
[1766470640628,3.463,2966.9,2965.8,3.371]
[1766470641122,0.16859,2967.8,2966.0,2.70276466]
[1766470641321,0.16866,2966.6,2964.5,3.372]
[1766470641526,0.00505255,2965.8,2964.6,3.372]
[1766470641725,3.37705255,2965.8,2964.7,40.8]
[1766470642333,3.38001478,2965.8,2964.7,0.00376463]
[1766470642532,3.38001478,2965.8,2964.8,6.337]
[1766470642736,3.38001478,2965.8,2964.7,0.00376463]
[1766470643035,3.38001478,2965.8,2964.7,3.37576463]
[1766470643427,3.38001478,2965.8,2964.7,0.00376463]
[1766470644230,0.00801478,2965.8,2964.7,0.00376463]
[1766470644436,3.372,2965.7,2964.7,0.00376463]
[1766470645029,6.07476466,2965.7,2964.1,3.372]
[1766470645231,2.70276466,2965.2,2963.0,2.70276466]
[1766470645436,2.70782624,2964.4,2962.3,8.431]
[1766470645638,2.70782624,2964.4,2960.4,0.19622908]
[1766470645639,6.07476466,2964.0,2960.1,8.431]
[1766470645838,44.69610949,2964.3,2960.2,6.492]
[1766470645839,2.70276466,2962.6,2960.2,6.492]
[1766470646140,3.372,2961.3,2958.8,0.26582857]
[1766470646339,0.05876984,2960.2,2957.7,0.056]
[1766470646530,0.05876984,2960.2,2958.1,3.59219883]
[1766470646735,0.05876984,2960.2,2958.2,47.907]
[1766470647035,0.16892,2962.0,2958.7,2.70276466]
[1766470647233,2.70276466,2961.3,2959.1,2.70276466]
[1766470647439,0.00390417,2962.0,2959.2,11.805]
[1766470647639,3.37690417,2962.0,2959.2,3.65526409]
[1766470647835,2.70276466,2961.6,2959.2,3.65526409]
[1766470648138,0.00390417,2962.0,2960.1,0.00506158]
[1766470648445,0.00390417,2962.0,2959.0,33.90609]
[1766470648446,0.00390417,2962.0,2958.8,3.70705174]
[1766470648734,11.866,2961.9,2958.9,13.05]
[1766470648940,2.70276466,2961.1,2959.5,40.8]
[1766470649138,0.00390417,2962.0,2959.6,9.715]
[1766470649331,0.00390417,2962.0,2960.5,0.00506158]
[1766470649537,0.00506158,2961.1,2960.5,0.00506158]
[1766470649735,2.70276466,2960.8,2959.6,0.00279776]
[1766470650038,3.374,2960.9,2959.6,0.00279776]
[1766470650342,2.70276466,2960.8,2959.6,0.00279776]
[1766470650742,0.00506158,2960.5,2959.9,0.00506158]
[1766470651043,2.70666883,2962.0,2959.9,3.38006158]
[1766470651340,2.70276466,2961.2,2959.9,0.00506158]
[1766470651539,13.676,2961.1,2959.6,0.00279776]
[1766470651841,2.70276466,2960.5,2957.7,33.756]
[1766470652042,3.62187467,2960.1,2957.8,3.375]
[1766470652342,3.62187467,2958.6,2957.5,0.00955211]
[1766470652540,13.79103467,2957.9,2955.1,3.62187467]
[1766470652747,10.0,2957.9,2955.7,3.62187467]
[1766470653043,10.00362163,2957.9,2956.4,3.62187467]
[1766470653235,10.00362163,2957.9,2956.5,3.376]
[1766470653536,33.761,2959.5,2956.5,3.376]
[1766470653537,6.99787467,2958.5,2956.6,9.72]
[1766470653731,6.99787467,2958.5,2956.0,0.16926]
[1766470653732,0.00507082,2957.8,2956.4,3.376]
[1766470653930,33.763,2959.1,2956.1,6.344]
[1766470653931,0.16911,2958.6,2956.5,11.817]
[1766470654135,3.62187467,2958.4,2956.7,3.72399717]
[1766470654340,3.62187467,2958.4,2956.4,3.72399717]
[1766470654341,6.99887467,2958.3,2955.9,3.377]
[1766470654635,0.00271156,2958.3,2956.8,3.72399717]
[1766470654834,0.00271156,2958.3,2956.9,5.381]
[1766470655034,0.00507082,2957.9,2957.3,0.00507082]
[1766470655642,0.00507082,2957.9,2956.6,40.8]
[1766470655836,0.00507082,2957.9,2956.7,3.377]
[1766470656231,0.00271156,2958.3,2956.8,6.347]
[1766470656436,0.00271156,2958.3,2956.9,9.725]
[1766470656647,0.00271156,2958.3,2956.6,40.8]
[1766470656942,3.62187467,2958.1,2956.7,3.378]
[1766470657148,16.849,2958.0,2956.6,3.378]
[1766470657333,0.00271156,2958.3,2957.1,0.00507082]
[1766470657334,0.00507082,2957.7,2957.1,0.00507082]
[1766470657534,8.446,2959.1,2957.4,0.04054936]
[1766470657837,3.378,2959.3,2957.5,11.824]
[1766470658032,3.378,2959.3,2957.3,0.04054936]
[1766470658238,3.378,2959.3,2957.6,6.35]
[1766470658439,0.00507082,2958.7,2957.7,3.378]
[1766470658639,4.285e-05,2958.7,2957.7,3.378]
[1766470658941,3.378,2959.2,2957.3,0.04054936]
[1766470659138,3.62187467,2958.8,2957.2,40.8]
[1766470659430,3.62187467,2958.8,2955.9,0.16926]
[1766470659431,3.379,2958.7,2957.1,6.35607082]
[1766470659634,3.379,2958.7,2957.1,0.00507082]
[1766470659831,3.62187467,2957.9,2956.6,3.379]
[1766470660038,3.62187467,2956.9,2955.8,40.8]
[1766470660232,3.62187467,2956.9,2954.0,0.16937]
[1766470660233,3.379,2956.8,2955.3,3.379]
[1766470660433,3.62187467,2956.1,2954.7,3.379]
[1766470660634,8.448,2956.9,2954.7,3.379]
[1766470660635,3.379,2957.2,2954.8,3.379]
[1766470660846,14.73818,2957.5,2955.8,0.04054936]
[1766470661137,3.379,2957.5,2955.9,0.033]
[1766470661340,3.38217718,2957.5,2956.0,3.379]
[1766470661537,0.00317718,2957.5,2956.0,3.66962832]
[1766470661940,0.00317718,2957.5,2956.1,14.541]
[1766470662137,33.799,2958.5,2956.1,14.541]
[1766470662138,3.38,2958.5,2956.1,14.541]
[1766470662339,3.38,2958.9,2956.5,3.62187467]
[1766470662538,3.38,2959.8,2957.5,3.62187467]
[1766470662745,3.38,2959.9,2957.9,0.04054936]
[1766470662940,0.00507082,2959.2,2958.6,0.00507082]
[1766470663138,3.38,2959.1,2956.9,33.806]
[1766470663340,0.00794939,2959.2,2957.2,0.04054936]
[1766470663542,3.62187467,2959.0,2957.3,3.38]
[1766470663743,3.62187467,2959.0,2957.3,3.42054936]
[1766470664244,3.62187467,2959.0,2957.9,0.00507082]
[1766470664442,3.62187467,2958.6,2957.9,0.00507082]
[1766470664635,3.38,2958.5,2957.9,0.00507082]
[1766470665035,3.38,2958.5,2957.8,3.38]
[1766470665239,3.38,2958.9,2957.8,3.38]
[1766470665438,3.38,2958.9,2957.6,6.354]
[1766470665646,7.00187467,2958.9,2957.7,3.38]
[1766470666039,7.00187467,2958.9,2958.0,0.00507082]
[1766470666449,0.17702939,2959.2,2958.0,0.00507082]
[1766470666450,0.00794939,2959.2,2958.1,6.354]
[1766470666746,0.00794939,2959.2,2958.0,0.00507082]
[1766470666951,3.62187467,2958.3,2958.0,0.00507082]
[1766470667248,3.381,2958.2,2957.3,0.00340553]
[1766470668047,3.381,2958.2,2957.5,0.00507082]
[1766470668350,8.452,2959.0,2957.6,3.381]
[1766470668652,3.62187467,2958.3,2957.5,0.00507082]
[1766470668946,7.00287467,2958.3,2957.5,0.00507082]
[1766470669450,3.62187467,2957.8,2955.2,8.51185352]
[1766470669645,3.62187467,2956.2,2955.3,3.381]
[1766470669946,3.381,2956.6,2955.3,40.8]
[1766470670145,3.381,2956.6,2955.1,4.647]
[1766470670347,3.62187467,2955.2,2952.7,0.11773721]
[1766470670541,46.67232,2955.1,2952.7,0.11773721]
[1766470670744,3.62187467,2954.1,2952.7,0.11773721]
[1766470670948,3.62187467,2953.9,2952.7,0.11773721]
[1766470671244,0.00507082,2953.6,2952.7,0.11773721]
[1766470671554,11.835,2953.5,2949.1,0.116]
[1766470671740,11.835,2953.5,2947.6,33.818]
[1766470671741,0.16953,2951.3,2947.4,3.381]
[1766470672049,0.00508026,2949.6,2948.0,3.66178769]
[1766470672242,0.00508026,2949.6,2948.0,3.72079434]
[1766470672444,3.62187467,2949.4,2947.6,3.382]
[1766470672749,0.00508026,2949.6,2947.4,0.00411236]
[1766470672942,0.00508026,2949.6,2948.2,0.00413394]
[1766470673250,3.383,2951.2,2948.3,45.98233209]
[1766470673445,1.7419029,2952.9,2948.3,45.98233209]
[1766470673446,8.458,2952.1,2949.0,0.00413394]
[1766470673648,1.3309652,2953.0,2949.2,3.62187467]
[1766470673848,3.383,2952.4,2949.3,51.61887467]
[1766470674149,8.459,2952.6,2950.1,3.62187467]
[1766470674347,3.62187467,2952.8,2950.6,0.00508026]
[1766470674545,3.384,2952.7,2950.6,0.00508026]
[1766470674751,3.384,2952.6,2950.7,3.17306531]
[1766470674946,0.00413995,2952.7,2950.9,0.00413394]
[1766470675146,0.00413995,2952.7,2951.0,14.819]
[1766470675352,0.00413995,2952.7,2951.1,9.742]
[1766470675552,0.00508026,2952.1,2951.1,9.742]
[1766470675748,0.00413995,2952.7,2951.2,14.821]
[1766470675954,3.384,2954.4,2951.7,3.62187467]
[1766470676154,3.384,2954.4,2951.8,11.846]
[1766470676351,3.384,2954.4,2951.8,3.59993713]
[1766470676551,0.1694,2953.7,2951.3,3.385]
[1766470676751,0.00508026,2952.8,2952.2,0.00508026]
[1766470677057,3.385,2954.1,2952.3,40.8]
[1766470677251,7.00687467,2954.3,2952.4,9.747]
[1766470677451,7.00687467,2954.3,2952.5,6.362]
[1766470677756,3.62187467,2953.8,2952.3,40.8]
[1766470677959,0.00508026,2953.3,2952.4,3.385]
[1766470678149,0.00378438,2953.8,2952.3,40.80413394]
[1766470678551,0.00378438,2953.8,2952.4,6.365]
[1766470678851,0.00378438,2953.8,2952.5,9.751]
[1766470679252,0.00508026,2953.4,2952.5,9.751]
[1766470679453,0.00378438,2953.8,2952.6,3.77127721]
[1766470679652,0.00378438,2953.8,2952.3,40.80413394]
[1766470679854,3.62187467,2953.1,2950.1,3.62187467]
[1766470680056,3.386,2953.0,2950.7,11.851]
[1766470680247,0.00378438,2953.8,2951.1,3.62187467]
[1766470680446,3.62565905,2953.8,2951.5,40.8]
[1766470680648,3.62187467,2953.3,2951.5,40.8]
[1766470680953,0.00508026,2952.7,2950.9,9.754]
[1766470681159,3.62187467,2952.6,2950.9,9.754]
[1766470681357,3.62187467,2952.6,2951.0,40.8]
[1766470681558,3.62187467,2951.1,2949.5,3.386]
[1766470681753,3.62187467,2950.6,2948.9,2.835]
[1766470681952,1.1617957,2951.9,2949.5,0.00508026]
[1766470682147,12.633,2951.8,2949.5,0.00508026]
[1766470682357,3.62187467,2951.4,2949.5,0.00508026]
[1766470682554,0.00356834,2951.4,2949.6,3.386]
[1766470682855,3.386,2953.2,2950.3,3.62187467]
[1766470683058,0.00508026,2952.0,2951.5,0.00508026]
[1766470683249,3.387,2953.9,2951.6,18.222]
[1766470683449,3.387,2953.9,2952.0,0.00413394]
[1766470683653,3.38951269,2953.9,2952.1,11.854]
[1766470683962,3.38951269,2953.9,2952.2,59.024]
[1766470684159,0.00330373,2953.3,2952.3,6.369]
[1766470684364,0.00330373,2953.3,2952.4,3.387]
[1766470684555,3.73e-06,2953.3,2952.4,3.387]
[1766470684754,3.387,2954.5,2953.2,0.00162125]
[1766470685258,3.387,2954.5,2952.3,3.62187467]
[1766470685259,3.387,2954.5,2952.0,0.0036972]
[1766470685563,3.387,2954.5,2952.5,0.00162125]
[1766470685764,0.16936,2954.4,2953.2,0.00508026]
[1766470686257,6.04136,2954.4,2953.2,0.00508026]
[1766470686458,0.16936,2954.4,2953.2,0.00508026]
[1766470686663,0.16936,2954.4,2953.3,0.00162125]
[1766470686855,0.16936,2954.4,2953.2,0.00508026]
[1766470687060,3.39023243,2954.5,2953.4,3.387]
[1766470687357,3.39023243,2954.5,2953.2,0.00508026]
[1766470687560,3.62187467,2954.2,2952.9,3.387]
[1766470687755,11.855,2954.1,2952.9,3.387]
[1766470688258,3.62187467,2953.7,2951.3,3.62187467]
[1766470688464,3.387,2953.8,2952.3,3.387]
[1766470688660,8.63737,2954.1,2952.7,0.00508026]
[1766470688866,0.00323243,2954.5,2952.8,9.76]
[1766470689064,0.00323243,2954.5,2952.8,13.5146043]
[1766470689264,0.00323243,2954.5,2952.9,6.373]
[1766470689458,0.00323243,2954.5,2952.7,0.00508026]
[1766470689459,3.62187467,2954.1,2953.0,40.8]
[1766470689669,3.387,2954.0,2952.7,0.00508026]
[1766470689960,3.62187467,2953.6,2952.3,3.387]
[1766470690163,3.387,2953.5,2952.3,3.387]
[1766470690459,0.1694,2953.5,2952.0,0.0036972]
[1766470690657,0.16945,2952.7,2951.1,3.387]
[1766470690857,0.00508026,2952.2,2951.6,0.00508026]
[1766470691054,5.872,2953.7,2951.6,3.39208026]
[1766470691259,3.387,2953.9,2952.1,0.00162125]
[1766470691458,4.39064353,2953.8,2952.2,3.387]
[1766470691660,0.16941,2953.4,2952.2,0.00440118]
[1766470691861,3.62187467,2953.1,2951.6,0.00508026]
[1766470692064,0.17183203,2953.8,2951.8,3.387]
[1766470692362,3.387,2953.7,2951.9,6.374]
[1766470692560,0.16942,2953.2,2951.6,0.00508026]
[1766470692755,11.856,2953.1,2951.7,3.387]
[1766470693059,3.62187467,2952.9,2951.7,0.00355538]
[1766470693360,3.55644,2952.8,2951.7,0.00355538]
[1766470693865,3.55644,2952.8,2945.4,0.3372]
[1766470693866,0.16948,2952.1,2951.0,3.387]
[1766470694059,3.387,2952.0,2950.6,3.353]
[1766470694361,3.387,2952.0,2950.7,40.8]
[1766470694561,1.00559313,2951.9,2950.8,3.387]
[1766470694757,0.00508026,2951.6,2951.1,0.00508026]
[1766470694954,0.00772963,2951.6,2951.1,0.00508026]
[1766470695359,0.16954,2951.2,2950.2,3.388]
[1766470695558,9.48360555,2951.6,2948.6,0.16969]
[1766470695559,0.16957,2950.6,2949.3,3.388]
[1766470695761,0.16957,2950.6,2948.6,8.47]
[1766470695762,0.16961,2950.0,2948.6,3.388]
[1766470696065,8.841,2949.9,2948.6,3.388]
[1766470696260,0.00508026,2949.5,2949.0,0.00508026]
[1766470696464,0.00889939,2949.5,2949.0,0.00162125]
[1766470696770,0.16955,2951.0,2949.1,9.763]
[1766470696958,1.00731169,2951.0,2949.2,3.388]
[1766470697258,4.36796712,2950.3,2949.0,3.388]
[1766470697461,3.388,2950.2,2948.6,0.00431724]
[1766470697661,1.1617957,2951.4,2949.3,45.16796712]
[1766470697960,1.00887893,2951.3,2949.4,3.74399431]
[1766470698157,1.00887893,2951.3,2949.7,4.36796712]
[1766470698357,1.00887893,2951.2,2949.7,3.389]
[1766470698563,3.389,2951.9,2949.8,18.59199431]
[1766470698758,0.00298052,2951.9,2950.6,0.00508026]
[1766470698965,1.01156179,2952.4,2950.7,18.238]
[1766470699160,1.01156179,2952.3,2950.7,3.76343516]
[1766470699459,1.01156179,2952.2,2950.6,0.00508026]
[1766470699664,1.1617957,2952.6,2950.7,53.19943516]
[1766470699866,4.5507957,2952.7,2950.7,53.19943516]
[1766470700068,4.5507957,2953.7,2951.5,4.36796712]
[1766470700267,1.1617957,2953.1,2952.3,0.00508026]
[1766470700563,1.1617957,2953.1,2951.6,3.676]
[1766470700564,4.5507957,2953.0,2951.2,3.69088192]
[1766470700765,3.389,2953.0,2951.3,18.239]
[1766470700957,0.00407735,2953.0,2951.3,18.239]
[1766470701157,0.00407735,2953.0,2951.4,3.64119283]
[1766470701368,2.6e-07,2952.5,2951.9,0.00508026]
[1766470701556,3.389,2954.3,2952.0,14.13496712]
[1766470701756,3.389,2954.6,2952.5,4.36796712]
[1766470701965,3.389,2954.7,2952.6,9.768]
[1766470702160,3.389,2955.4,2953.0,4.36796712]
[1766470702471,3.389,2955.4,2954.0,4.36796712]
[1766470702472,0.00419598,2955.4,2954.0,4.36796712]
[1766470702762,3.389,2955.8,2954.1,3.671]
[1766470702959,3.389,2955.8,2953.9,0.00508026]
[1766470703155,8.472,2955.7,2953.9,0.00508026]
[1766470703357,2.847,2955.6,2954.0,3.388]
[1766470703562,3.388,2955.5,2954.0,3.388]
[1766470703757,3.39183167,2955.5,2953.9,0.00508026]
[1766470703970,4.53726712,2955.4,2953.9,0.00508026]
[1766470704467,4.36796712,2954.4,2953.0,3.39038721]
[1766470704764,11.859,2954.3,2953.0,3.39038721]
[1766470705070,1.1617957,2955.3,2953.1,11.229]
[1766470705268,3.388,2955.2,2953.2,9.764]
[1766470705461,0.00508026,2954.5,2953.9,0.00508026]
[1766470705966,0.00508026,2954.5,2953.9,3.39308026]
[1766470706366,0.00508026,2954.5,2954.0,3.388]
[1766470706769,3.388,2955.1,2953.9,0.00508026]
[1766470706966,7.75596712,2955.1,2953.9,0.00508026]
[1766470708060,3.388,2955.1,2953.9,0.00508026]
[1766470708261,3.388,2955.1,2954.0,3.388]
[1766470708457,3.388,2955.1,2954.1,0.007]
[1766470708761,0.00383167,2955.5,2954.1,0.007]
[1766470709160,3.387,2956.3,2954.2,3.52897593]
[1766470709371,3.387,2956.6,2954.3,3.387]
[1766470709570,8.469,2956.7,2954.2,3.52897593]
[1766470709571,3.387,2956.7,2954.4,46.135]
[1766470709770,3.387,2956.7,2954.4,3.52897593]
[1766470710064,4.36796712,2956.2,2954.0,8.469]
[1766470710267,11.856,2956.1,2954.1,9.762]
[1766470710461,3.387,2956.1,2954.5,40.8]
[1766470710659,3.387,2956.1,2954.6,3.387]
[1766470710868,0.00438172,2956.2,2954.7,6.375]
[1766470711067,0.00438172,2956.2,2954.8,3.387]
[1766470711261,0.00438172,2956.2,2954.5,40.8]
[1766470711465,0.00438172,2956.2,2954.6,18.233]
[1766470711660,3.387,2956.1,2954.6,18.233]
[1766470711862,3.387,2956.1,2953.9,0.00508026]
[1766470711863,4.36796712,2955.6,2953.9,0.00508026]
[1766470712069,12.73542982,2955.5,2953.9,0.00508026]
[1766470712265,11.855,2955.5,2953.9,0.00508026]
[1766470712575,3.387,2955.8,2954.0,44.187]
[1766470712768,3.387,2955.8,2954.1,6.379]
[1766470712969,3.387,2955.8,2954.1,9.97343095]
[1766470713158,3.387,2955.8,2954.2,9.767]
[1766470713468,3.387,2955.8,2954.0,40.8]
[1766470713665,3.387,2955.8,2954.1,18.234]
[1766470714066,3.387,2955.8,2954.2,14.849]
[1766470714270,3.387,2955.8,2954.2,18.235]